[Event "Titled Tuesday Blitz August 09 Early 2022"]
[White "Atakhan, Abtin"]
[Black "Gurevich, Dmitry"]
[WhiteFideId "22502203"]
[BlackFideId "2000407"]
[WhiteElo "2087"]
[BlackElo "2506"]
[Result "1-0"]
[Round "07"]
[TimeControl "180+1"]
[Date "2022.08.09"]
[WhiteClock "0:00:04"]
[BlackClock "0:00:03"]

1. d4 {[%clk 0:02:57]}  Nf6 {[%clk 0:02:59]} 2. c4 {[%clk 0:02:41]}  a6 {[%clk 0:02:58]} 3. Nc3 {[%clk 0:02:39]}  c5 {[%clk 0:02:57]} 4. dxc5 {[%clk 0:02:35]}  e6 {[%clk 0:02:57]} 5. e4 {[%clk 0:02:28]}  Qc7 {[%clk 0:02:57]} 6. Nf3 {[%clk 0:02:24]}  Bxc5 {[%clk 0:02:53]} 7. Be2 {[%clk 0:02:21]}  Be7 {[%clk 0:02:47]} 8. e5 {[%clk 0:02:19]}  Ng4 {[%clk 0:02:46]} 9. Qd4 {[%clk 0:02:18]}  h5 {[%clk 0:02:43]} 10. Ne4 {[%clk 0:02:11]}  Nc6 {[%clk 0:02:25]} 11. Nd6+ {[%clk 0:02:10]}  Kf8 {[%clk 0:02:22]} 12. Qf4 {[%clk 0:02:07]}  Ncxe5 {[%clk 0:02:13]} 13. Nxe5 {[%clk 0:01:53]}  Nxe5 {[%clk 0:02:10]} 14. Nxf7 {[%clk 0:01:53]}  Nd3+ {[%clk 0:02:04]} 15. Bxd3 {[%clk 0:01:51]}  Qxf4 {[%clk 0:02:04]} 16. Bxf4 {[%clk 0:01:47]}  Kxf7 {[%clk 0:02:04]} 17. O-O {[%clk 0:01:39]}  g5 {[%clk 0:02:04]} 18. Be3 {[%clk 0:01:36]}  Bf6 {[%clk 0:02:00]} 19. Rab1 {[%clk 0:01:32]}  b5 {[%clk 0:01:57]} 20. Be4 {[%clk 0:01:30]}  Rb8 {[%clk 0:01:49]} 21. Ba7 {[%clk 0:01:30]}  Rb7 {[%clk 0:01:49]} 22. Bxb7 {[%clk 0:01:29]}  Bxb7 {[%clk 0:01:50]} 23. cxb5 {[%clk 0:01:29]}  axb5 {[%clk 0:01:50]} 24. Rfd1 {[%clk 0:01:26]}  Bd5 {[%clk 0:01:42]} 25. a3 {[%clk 0:01:19]}  Ra8 {[%clk 0:00:59]} 26. Bd4 {[%clk 0:01:13]}  Be7 {[%clk 0:00:59]} 27. Rbc1 {[%clk 0:01:10]}  Ra4 {[%clk 0:00:56]} 28. Bc5 {[%clk 0:00:56]}  Bf6 {[%clk 0:00:56]} 29. Rd2 {[%clk 0:00:54]}  g4 {[%clk 0:00:54]} 30. Rcd1 {[%clk 0:00:47]}  Rc4 {[%clk 0:00:50]} 31. Bb4 {[%clk 0:00:46]}  Bg5 {[%clk 0:00:44]} 32. Re2 {[%clk 0:00:45]}  Bc6 {[%clk 0:00:40]} 33. b3 {[%clk 0:00:40]}  Rf4 {[%clk 0:00:36]} 34. Bd2 {[%clk 0:00:35]}  Rd4 {[%clk 0:00:36]} 35. Kf1 {[%clk 0:00:26]}  Rd3 {[%clk 0:00:36]} 36. Ke1 {[%clk 0:00:09]}  Bxd2+ {[%clk 0:00:35]} 37. Rexd2 {[%clk 0:00:08]}  Rxb3 {[%clk 0:00:35]} 38. Rd3 {[%clk 0:00:08]}  Rb2 {[%clk 0:00:34]} 39. R1d2 {[%clk 0:00:08]}  Rb1+ {[%clk 0:00:34]} 40. Ke2 {[%clk 0:00:08]}  Rg1 {[%clk 0:00:30]} 41. g3 {[%clk 0:00:07]}  Rh1 {[%clk 0:00:31]} 42. Ke3 {[%clk 0:00:06]}  Rxh2 {[%clk 0:00:30]} 43. Kf4 {[%clk 0:00:05]}  Kf6 {[%clk 0:00:29]} 44. Re3 {[%clk 0:00:05]}  Rh1 {[%clk 0:00:27]} 45. Re5 {[%clk 0:00:05]}  Ra1 {[%clk 0:00:24]} 46. Rxh5 {[%clk 0:00:04]}  Rxa3 {[%clk 0:00:24]} 47. Rh6+ {[%clk 0:00:04]}  Kg7 {[%clk 0:00:24]} 48. Rh4 {[%clk 0:00:04]}  Ra4+ {[%clk 0:00:21]} 49. Kg5 {[%clk 0:00:04]}  Rc4 {[%clk 0:00:11]} 50. Rxg4 {[%clk 0:00:04]}  Rc3 {[%clk 0:00:11]} 51. Rf4 {[%clk 0:00:02]}  Bd5 {[%clk 0:00:10]} 52. Rb2 {[%clk 0:00:01]}  Bc6 {[%clk 0:00:10]} 53. Rb1 {[%clk 0:00:01]}  Rc5+ {[%clk 0:00:10]} 54. Kh4 {[%clk 0:00:01]}  Kg6 {[%clk 0:00:11]} 55. Rg4+ {[%clk 0:00:01]}  Kf6 {[%clk 0:00:10]} 56. Rf4+ {[%clk 0:00:02]}  Kg6 {[%clk 0:00:10]} 57. Kh3 {[%clk 0:00:03]}  Rh5+ {[%clk 0:00:08]} 58. Rh4 {[%clk 0:00:03]}  Rd5 {[%clk 0:00:08]} 59. Rc1 {[%clk 0:00:03]}  Rd2 {[%clk 0:00:07]} 60. f4 {[%clk 0:00:03]}  Bg2+ {[%clk 0:00:06]} 61. Kh2 {[%clk 0:00:03]}  Bf3+ {[%clk 0:00:05]} 62. Kh3 {[%clk 0:00:03]}  Be4 {[%clk 0:00:04]} 63. g4 {[%clk 0:00:03]}  Rd3+ {[%clk 0:00:04]} 64. Kh2 {[%clk 0:00:03]}  b4 {[%clk 0:00:03]} 65. g5 {[%clk 0:00:04]}  b3 {[%clk 0:00:03]} 66. Rh6+ {[%clk 0:00:04]}  Kf5 {[%clk 0:00:03]} 67. g6 {[%clk 0:00:04]}  Kg4 {[%clk 0:00:04]} 68. g7 {[%clk 0:00:04]}  Rd2+ {[%clk 0:00:04]} 69. Kg1 {[%clk 0:00:04]}  Rg2+ {[%clk 0:00:04]} 70. Kf1 {[%clk 0:00:04]}  Kf3 {[%clk 0:00:04]} 71. Rh3+ {[%clk 0:00:04]}  Kxf4 {[%clk 0:00:04]} 72. Rh4+ {[%clk 0:00:04]}  Kf5 {[%clk 0:00:03]} 73. Rxe4 {[%clk 0:00:05]}  Rxg7 {[%clk 0:00:03]} 74. Re2 {[%clk 0:00:04]}  d5 {[%clk 0:00:03]} 75. Rb1 {[%clk 0:00:04]}  e5 {[%clk 0:00:03]} 76. Rxb3 {[%clk 0:00:04]}  e4 {[%clk 0:00:03]} 77. Rb5 {[%clk 0:00:04]}  Ke5 {[%clk 0:00:03]} 78. Rd2 {[%clk 0:00:04]}  Rd7 {[%clk 0:00:03]} 79. Ke2 {[%clk 0:00:04]}  Rd6 {[%clk 0:00:02]} 80. Ke3 {[%clk 0:00:04]}  Rd7 {[%clk 0:00:03]} 81. Rd4 {[%clk 0:00:04]} 1-0


[Site "https://www.chess.com"]

[Event "Titled Tuesday Blitz August 09 Early 2022"]
[White "Baches Garcia, Guillermo"]
[Black "Ziatdinov, Raset"]
[WhiteFideId "2209764"]
[BlackFideId "2015323"]
[WhiteElo "2519"]
[BlackElo "2220"]
[Result "0-1"]
[Round "07"]
[TimeControl "180+1"]
[Date "2022.08.09"]
[WhiteClock "0:01:23"]
[BlackClock "0:01:45"]

1. e4 {[%clk 0:03:00]}  e6 {[%clk 0:02:59]} 2. d4 {[%clk 0:03:00]}  d5 {[%clk 0:03:00]} 3. exd5 {[%clk 0:03:01]}  exd5 {[%clk 0:03:01]} 4. Nf3 {[%clk 0:03:02]}  Nf6 {[%clk 0:03:01]} 5. Bd3 {[%clk 0:03:02]}  Bd6 {[%clk 0:03:02]} 6. O-O {[%clk 0:03:02]}  O-O {[%clk 0:03:02]} 7. h3 {[%clk 0:03:02]}  Nc6 {[%clk 0:03:03]} 8. Bg5 {[%clk 0:02:59]}  h6 {[%clk 0:03:03]} 9. Bh4 {[%clk 0:02:58]}  Bf4 {[%clk 0:03:02]} 10. Nbd2 {[%clk 0:02:54]}  Qd6 {[%clk 0:03:01]} 11. c3 {[%clk 0:02:39]}  g5 {[%clk 0:02:49]} 12. Bg3 {[%clk 0:02:38]}  Bxg3 {[%clk 0:02:50]} 13. fxg3 {[%clk 0:02:36]}  Qxg3 {[%clk 0:02:51]} 14. Qe2 {[%clk 0:02:26]}  Bxh3 {[%clk 0:02:45]} 15. Ne5 {[%clk 0:02:25]}  Nxe5 {[%clk 0:02:32]} 16. dxe5 {[%clk 0:02:24]}  Ng4 {[%clk 0:02:32]} 17. Nf3 {[%clk 0:02:18]}  Rae8 {[%clk 0:02:31]} 18. Kh1 {[%clk 0:01:50]}  Rxe5 {[%clk 0:02:03]} 19. Qd2 {[%clk 0:01:50]}  Re3 {[%clk 0:02:03]} 20. gxh3 {[%clk 0:01:36]}  Qxh3+ {[%clk 0:01:56]} 21. Kg1 {[%clk 0:01:36]}  Rxf3 {[%clk 0:01:48]} 22. Rxf3 {[%clk 0:01:23]}  Qxf3 {[%clk 0:01:48]} 23. Bf1 {[%clk 0:01:23]}  Qe3+ {[%clk 0:01:45]} 0-1


[Site "https://www.chess.com"]

[Event "Titled Tuesday Blitz August 09 Early 2022"]
[White "Bashirli, Saadat"]
[Black "Sarkar, Justin"]
[WhiteFideId "13429990"]
[BlackFideId "2010011"]
[WhiteElo "1173"]
[BlackElo "2076"]
[Result "1-0"]
[Round "07"]
[TimeControl "180+1"]
[Date "2022.08.09"]
[WhiteClock "0:00:58"]
[BlackClock "0:00:00"]

1. d4 {[%clk 0:03:00]}  Nc6 {[%clk 0:02:44]} 2. e4 {[%clk 0:02:59]}  d5 {[%clk 0:02:41]} 3. e5 {[%clk 0:02:56]}  f6 {[%clk 0:02:40]} 4. exf6 {[%clk 0:02:55]}  exf6 {[%clk 0:02:39]} 5. Bb5 {[%clk 0:02:55]}  Bd6 {[%clk 0:02:35]} 6. Bxc6+ {[%clk 0:02:55]}  bxc6 {[%clk 0:02:35]} 7. Nf3 {[%clk 0:02:56]}  Ne7 {[%clk 0:02:33]} 8. O-O {[%clk 0:02:56]}  O-O {[%clk 0:02:33]} 9. Re1 {[%clk 0:02:55]}  Bg4 {[%clk 0:02:30]} 10. h3 {[%clk 0:02:54]}  Bh5 {[%clk 0:02:29]} 11. Nbd2 {[%clk 0:02:52]}  c5 {[%clk 0:02:27]} 12. c3 {[%clk 0:02:50]}  cxd4 {[%clk 0:02:23]} 13. cxd4 {[%clk 0:02:51]}  c5 {[%clk 0:02:14]} 14. dxc5 {[%clk 0:02:48]}  Bxc5 {[%clk 0:02:15]} 15. Nb3 {[%clk 0:02:46]}  Bd6 {[%clk 0:02:08]} 16. Nbd4 {[%clk 0:02:37]}  Qd7 {[%clk 0:02:04]} 17. Be3 {[%clk 0:02:35]}  Rac8 {[%clk 0:01:58]} 18. Qb3 {[%clk 0:02:30]}  Kh8 {[%clk 0:01:44]} 19. Rad1 {[%clk 0:02:13]}  Rfd8 {[%clk 0:01:19]} 20. Qb5 {[%clk 0:01:52]}  Qxb5 {[%clk 0:00:59]} 21. Nxb5 {[%clk 0:01:53]}  Bxf3 {[%clk 0:00:57]} 22. gxf3 {[%clk 0:01:52]}  a6 {[%clk 0:00:55]} 23. Nxd6 {[%clk 0:01:51]}  Rxd6 {[%clk 0:00:56]} 24. Bc5 {[%clk 0:01:44]}  Rxc5 {[%clk 0:00:53]} 25. Rxe7 {[%clk 0:01:43]}  h5 {[%clk 0:00:47]} 26. Rd2 {[%clk 0:01:37]}  d4 {[%clk 0:00:45]} 27. Re4 {[%clk 0:01:35]}  d3 {[%clk 0:00:34]} 28. Re3 {[%clk 0:01:31]}  Rc2 {[%clk 0:00:29]} 29. Rdxd3 {[%clk 0:01:22]}  Rxd3 {[%clk 0:00:29]} 30. Rxd3 {[%clk 0:01:22]}  Rxb2 {[%clk 0:00:29]} 31. Ra3 {[%clk 0:01:21]}  Rb6 {[%clk 0:00:27]} 32. Ra5 {[%clk 0:01:22]}  h4 {[%clk 0:00:25]} 33. Kg2 {[%clk 0:01:22]}  Kg8 {[%clk 0:00:23]} 34. Ra4 {[%clk 0:01:15]}  g5 {[%clk 0:00:21]} 35. f4 {[%clk 0:01:09]}  Kf7 {[%clk 0:00:20]} 36. fxg5 {[%clk 0:01:08]}  fxg5 {[%clk 0:00:20]} 37. Kf3 {[%clk 0:01:08]}  Kf6 {[%clk 0:00:18]} 38. Kg4 {[%clk 0:01:08]}  Kg6 {[%clk 0:00:16]} 39. f4 {[%clk 0:01:06]}  gxf4 {[%clk 0:00:13]} 40. Rxf4 {[%clk 0:01:05]}  a5 {[%clk 0:00:05]} 41. Ra4 {[%clk 0:01:05]}  Rb5 {[%clk 0:00:05]} 42. Kxh4 {[%clk 0:01:03]}  Kf5 {[%clk 0:00:05]} 43. Rg4 {[%clk 0:01:00]}  Rb2 {[%clk 0:00:03]} 44. Rg5+ {[%clk 0:00:58]}  Kf4 {[%clk 0:00:00]} 45. Rxa5 {[%clk 0:00:58]} 1-0


[Site "https://www.chess.com"]

[Event "Titled Tuesday Blitz August 09 Early 2022"]
[White "Blanco Ronquillo, Humberto L."]
[Black "Harsh Suresh"]
[WhiteFideId "3504239"]
[BlackFideId "45018464"]
[WhiteElo "2425"]
[BlackElo "2070"]
[Result "1-0"]
[Round "07"]
[TimeControl "180+1"]
[Date "2022.08.09"]
[WhiteClock "0:01:50"]
[BlackClock "0:01:16"]

1. d4 {[%clk 0:03:00]}  g6 {[%clk 0:02:59]} 2. e4 {[%clk 0:03:00]}  Nf6 {[%clk 0:02:59]} 3. Bd3 {[%clk 0:02:59]}  d6 {[%clk 0:02:58]} 4. h3 {[%clk 0:02:56]}  Bg7 {[%clk 0:02:58]} 5. Nf3 {[%clk 0:02:56]}  O-O {[%clk 0:02:58]} 6. O-O {[%clk 0:02:55]}  a6 {[%clk 0:02:58]} 7. a4 {[%clk 0:02:48]}  Nc6 {[%clk 0:02:58]} 8. Re1 {[%clk 0:02:45]}  e5 {[%clk 0:02:57]} 9. c3 {[%clk 0:02:45]}  h6 {[%clk 0:02:55]} 10. Be3 {[%clk 0:02:42]}  Re8 {[%clk 0:02:54]} 11. Nbd2 {[%clk 0:02:41]}  Kh7 {[%clk 0:02:53]} 12. d5 {[%clk 0:02:31]}  Ne7 {[%clk 0:02:53]} 13. c4 {[%clk 0:02:31]}  Nh5 {[%clk 0:02:48]} 14. c5 {[%clk 0:02:28]}  Nf4 {[%clk 0:02:46]} 15. Bf1 {[%clk 0:02:27]}  f5 {[%clk 0:02:46]} 16. g3 {[%clk 0:02:26]}  fxe4 {[%clk 0:02:39]} 17. Nxe4 {[%clk 0:02:25]}  Nfxd5 {[%clk 0:02:38]} 18. cxd6 {[%clk 0:02:25]}  cxd6 {[%clk 0:02:37]} 19. Bc1 {[%clk 0:02:19]}  Rf8 {[%clk 0:02:31]} 20. Ra3 {[%clk 0:02:18]}  Be6 {[%clk 0:02:27]} 21. Nfg5+ {[%clk 0:02:17]}  hxg5 {[%clk 0:02:23]} 22. Nxg5+ {[%clk 0:02:18]}  Kg8 {[%clk 0:02:23]} 23. Nxe6 {[%clk 0:02:19]}  Qb6 {[%clk 0:02:21]} 24. Nxf8 {[%clk 0:02:17]}  Rxf8 {[%clk 0:02:22]} 25. Rf3 {[%clk 0:02:12]}  Rxf3 {[%clk 0:02:03]} 26. Qxf3 {[%clk 0:02:13]}  Nf6 {[%clk 0:02:03]} 27. Bg5 {[%clk 0:02:09]}  Qc6 {[%clk 0:01:47]} 28. Qxc6 {[%clk 0:02:06]}  Nxc6 {[%clk 0:01:48]} 29. Bxf6 {[%clk 0:02:05]}  Bxf6 {[%clk 0:01:49]} 30. Bg2 {[%clk 0:02:05]}  Kf7 {[%clk 0:01:41]} 31. Rc1 {[%clk 0:02:02]}  Na5 {[%clk 0:01:30]} 32. Bd5+ {[%clk 0:02:00]}  Ke7 {[%clk 0:01:30]} 33. b4 {[%clk 0:01:57]}  Nc6 {[%clk 0:01:28]} 34. Bxc6 {[%clk 0:01:57]}  bxc6 {[%clk 0:01:28]} 35. Rxc6 {[%clk 0:01:58]}  d5 {[%clk 0:01:27]} 36. Rxa6 {[%clk 0:01:57]}  e4 {[%clk 0:01:27]} 37. Kf1 {[%clk 0:01:57]}  Bc3 {[%clk 0:01:25]} 38. b5 {[%clk 0:01:53]}  d4 {[%clk 0:01:26]} 39. Rxg6 {[%clk 0:01:51]}  Kd7 {[%clk 0:01:23]} 40. Rc6 {[%clk 0:01:51]}  Bb2 {[%clk 0:01:21]} 41. a5 {[%clk 0:01:51]}  Bc3 {[%clk 0:01:19]} 42. a6 {[%clk 0:01:51]}  d3 {[%clk 0:01:16]} 43. Rxc3 {[%clk 0:01:50]}  d2 {[%clk 0:01:16]} 44. Ke2 {[%clk 0:01:49]}  d1=Q+ {[%clk 0:01:16]} 45. Kxd1 {[%clk 0:01:50]} 1-0


[Site "https://www.chess.com"]

[Event "Titled Tuesday Blitz August 09 Early 2022"]
[White "Clawitter, Craig"]
[Black "Sawlin, Leonid"]
[WhiteFideId "2023105"]
[BlackFideId "4689542"]
[WhiteElo "2190"]
[BlackElo "2412"]
[Result "0-1"]
[Round "07"]
[TimeControl "180+1"]
[Date "2022.08.09"]
[WhiteClock "0:01:29"]
[BlackClock "0:02:24"]

1. e4 {[%clk 0:03:00]}  c5 {[%clk 0:02:56]} 2. Nf3 {[%clk 0:02:58]}  e6 {[%clk 0:02:56]} 3. d4 {[%clk 0:02:54]}  cxd4 {[%clk 0:02:56]} 4. Nxd4 {[%clk 0:02:54]}  Nc6 {[%clk 0:02:56]} 5. Nc3 {[%clk 0:02:50]}  Nf6 {[%clk 0:02:56]} 6. Ndb5 {[%clk 0:02:49]}  Bc5 {[%clk 0:02:55]} 7. Bf4 {[%clk 0:02:46]}  O-O {[%clk 0:02:49]} 8. Bd6 {[%clk 0:02:40]}  Bxd6 {[%clk 0:02:48]} 9. Qxd6 {[%clk 0:02:41]}  a6 {[%clk 0:02:44]} 10. Nc7 {[%clk 0:02:24]}  Ra7 {[%clk 0:02:44]} 11. e5 {[%clk 0:02:16]}  Ng4 {[%clk 0:02:40]} 12. f4 {[%clk 0:01:56]}  b6 {[%clk 0:02:28]} 13. Be2 {[%clk 0:01:44]}  Ne3 {[%clk 0:02:27]} 14. Kd2 {[%clk 0:01:29]}  Nf5 {[%clk 0:02:24]} 0-1


[Site "https://www.chess.com"]

[Event "Titled Tuesday Blitz August 09 Early 2022"]
[White "D`Arruda, Ricardo D."]
[Black "Vakhlamov, Igor L."]
[WhiteFideId "100692"]
[BlackFideId "24126748"]
[WhiteElo "2476"]
[BlackElo "2401"]
[Result "0-1"]
[Round "07"]
[TimeControl "180+1"]
[Date "2022.08.09"]
[WhiteClock "0:00:12"]
[BlackClock "0:01:24"]

1. d4 {[%clk 0:03:00]}  d5 {[%clk 0:02:58]} 2. Nf3 {[%clk 0:03:00]}  Nf6 {[%clk 0:02:58]} 3. c4 {[%clk 0:02:59]}  e6 {[%clk 0:02:58]} 4. Nc3 {[%clk 0:02:58]}  c5 {[%clk 0:02:57]} 5. cxd5 {[%clk 0:02:56]}  cxd4 {[%clk 0:02:57]} 6. Nxd4 {[%clk 0:02:49]}  Nxd5 {[%clk 0:02:54]} 7. Bd2 {[%clk 0:02:45]}  Bc5 {[%clk 0:02:38]} 8. e3 {[%clk 0:02:43]}  O-O {[%clk 0:02:36]} 9. Be2 {[%clk 0:02:41]}  Bxd4 {[%clk 0:02:33]} 10. exd4 {[%clk 0:02:40]}  Nc6 {[%clk 0:02:33]} 11. Nxd5 {[%clk 0:02:28]}  Qxd5 {[%clk 0:02:34]} 12. Bc3 {[%clk 0:02:28]}  Rd8 {[%clk 0:02:32]} 13. O-O {[%clk 0:02:11]}  b6 {[%clk 0:02:28]} 14. Bf3 {[%clk 0:01:58]}  Qd7 {[%clk 0:02:28]} 15. Qe2 {[%clk 0:01:51]}  Bb7 {[%clk 0:02:26]} 16. Rad1 {[%clk 0:01:34]}  Ne7 {[%clk 0:02:25]} 17. Rfe1 {[%clk 0:01:21]}  Bxf3 {[%clk 0:02:24]} 18. Qxf3 {[%clk 0:01:22]}  Nd5 {[%clk 0:02:25]} 19. Bd2 {[%clk 0:01:21]}  Rac8 {[%clk 0:02:24]} 20. Rc1 {[%clk 0:01:21]}  h6 {[%clk 0:02:23]} 21. h3 {[%clk 0:01:21]}  Ne7 {[%clk 0:02:18]} 22. Bc3 {[%clk 0:01:18]}  Qd5 {[%clk 0:02:16]} 23. Qxd5 {[%clk 0:01:17]}  Nxd5 {[%clk 0:02:17]} 24. Bd2 {[%clk 0:01:17]}  Kf8 {[%clk 0:02:16]} 25. Kf1 {[%clk 0:01:16]}  Ke7 {[%clk 0:02:16]} 26. Ke2 {[%clk 0:01:16]}  Kd7 {[%clk 0:02:16]} 27. Kd3 {[%clk 0:01:16]}  Rxc1 {[%clk 0:02:17]} 28. Rxc1 {[%clk 0:01:16]}  Rc8 {[%clk 0:02:17]} 29. Re1 {[%clk 0:01:13]}  a6 {[%clk 0:02:15]} 30. g4 {[%clk 0:01:10]}  b5 {[%clk 0:02:15]} 31. f4 {[%clk 0:01:09]}  g6 {[%clk 0:02:15]} 32. f5 {[%clk 0:01:08]}  gxf5 {[%clk 0:02:16]} 33. gxf5 {[%clk 0:01:08]}  Rg8 {[%clk 0:02:15]} 34. fxe6+ {[%clk 0:01:06]}  fxe6 {[%clk 0:02:15]} 35. Bxh6 {[%clk 0:00:57]}  Rg3+ {[%clk 0:02:14]} 36. Ke4 {[%clk 0:00:54]}  Rxh3 {[%clk 0:02:12]} 37. Bc1 {[%clk 0:00:50]}  Nb4 {[%clk 0:02:04]} 38. a3 {[%clk 0:00:38]}  Nd3 {[%clk 0:02:01]} 39. Rg1 {[%clk 0:00:37]}  Nf2+ {[%clk 0:01:58]} 40. Ke5 {[%clk 0:00:33]}  Rh5+ {[%clk 0:01:54]} 41. Kf6 {[%clk 0:00:33]}  Rf5+ {[%clk 0:01:54]} 42. Kg6 {[%clk 0:00:33]}  Nd3 {[%clk 0:01:50]} 43. Rd1 {[%clk 0:00:30]}  Nxc1 {[%clk 0:01:46]} 44. Rxc1 {[%clk 0:00:31]}  Rd5 {[%clk 0:01:46]} 45. Rd1 {[%clk 0:00:22]}  Kd6 {[%clk 0:01:39]} 46. Kf6 {[%clk 0:00:21]}  Rf5+ {[%clk 0:01:39]} 47. Kg6 {[%clk 0:00:20]}  Kd5 {[%clk 0:01:40]} 48. Rc1 {[%clk 0:00:18]}  a5 {[%clk 0:01:36]} 49. Rc8 {[%clk 0:00:13]}  Kxd4 {[%clk 0:01:35]} 50. Rb8 {[%clk 0:00:13]}  a4 {[%clk 0:01:35]} 51. Rb6 {[%clk 0:00:13]}  Kc4 {[%clk 0:01:26]} 52. Rxe6 {[%clk 0:00:12]}  Rf3 {[%clk 0:01:22]} 53. Re4+ {[%clk 0:00:12]}  Kd5 {[%clk 0:01:22]} 54. Rb4 {[%clk 0:00:12]}  Rb3 {[%clk 0:01:22]} 55. Rxb3 {[%clk 0:00:10]}  axb3 {[%clk 0:01:23]} 56. Kf7 {[%clk 0:00:10]}  Kd4 {[%clk 0:01:21]} 57. Ke6 {[%clk 0:00:11]}  Kd3 {[%clk 0:01:22]} 58. Kd5 {[%clk 0:00:11]}  Kc2 {[%clk 0:01:23]} 59. Kc5 {[%clk 0:00:12]}  Kxb2 {[%clk 0:01:24]} 0-1


[Site "https://www.chess.com"]

[Event "Titled Tuesday Blitz August 09 Early 2022"]
[White "Danielyan, Vahe"]
[Black "Makarian, Rudik"]
[WhiteFideId "13304828"]
[BlackFideId "44105681"]
[WhiteElo "2421"]
[BlackElo "2403"]
[Result "0-1"]
[Round "07"]
[TimeControl "180+1"]
[Date "2022.08.09"]
[WhiteClock "0:00:31"]
[BlackClock "0:00:13"]

1. e4 {[%clk 0:03:00]}  c5 {[%clk 0:02:59]} 2. Nc3 {[%clk 0:03:01]}  Nc6 {[%clk 0:02:59]} 3. Bb5 {[%clk 0:03:00]}  Nd4 {[%clk 0:02:58]} 4. Bc4 {[%clk 0:03:01]}  e6 {[%clk 0:02:58]} 5. Nge2 {[%clk 0:03:01]}  Nf6 {[%clk 0:02:56]} 6. O-O {[%clk 0:02:59]}  Nc6 {[%clk 0:02:54]} 7. d3 {[%clk 0:02:50]}  a6 {[%clk 0:02:50]} 8. a4 {[%clk 0:02:50]}  Be7 {[%clk 0:02:49]} 9. f4 {[%clk 0:02:50]}  d5 {[%clk 0:02:49]} 10. Ba2 {[%clk 0:02:46]}  O-O {[%clk 0:02:50]} 11. Ng3 {[%clk 0:02:45]}  b5 {[%clk 0:02:46]} 12. e5 {[%clk 0:02:37]}  Ne8 {[%clk 0:02:42]} 13. Nh5 {[%clk 0:02:36]}  g6 {[%clk 0:02:35]} 14. Ng3 {[%clk 0:02:36]}  b4 {[%clk 0:02:34]} 15. Nce2 {[%clk 0:02:35]}  a5 {[%clk 0:02:30]} 16. c3 {[%clk 0:02:34]}  Ba6 {[%clk 0:02:20]} 17. Kh1 {[%clk 0:02:34]}  Ng7 {[%clk 0:02:20]} 18. Bb1 {[%clk 0:02:29]}  Rb8 {[%clk 0:02:19]} 19. d4 {[%clk 0:02:28]}  bxc3 {[%clk 0:02:15]} 20. bxc3 {[%clk 0:02:29]}  cxd4 {[%clk 0:02:07]} 21. cxd4 {[%clk 0:02:29]}  Bh4 {[%clk 0:02:01]} 22. Be3 {[%clk 0:02:25]}  Bxg3 {[%clk 0:02:00]} 23. hxg3 {[%clk 0:02:21]}  h5 {[%clk 0:01:52]} 24. Bf2 {[%clk 0:02:16]}  Rb2 {[%clk 0:01:50]} 25. Re1 {[%clk 0:02:15]}  Qb6 {[%clk 0:01:43]} 26. Bd3 {[%clk 0:02:08]}  Bxd3 {[%clk 0:01:43]} 27. Qxd3 {[%clk 0:02:09]}  Nf5 {[%clk 0:01:42]} 28. Kg1 {[%clk 0:01:52]}  Nb4 {[%clk 0:01:40]} 29. Qb5 {[%clk 0:01:40]}  Qxb5 {[%clk 0:01:29]} 30. axb5 {[%clk 0:01:40]}  Nd3 {[%clk 0:01:30]} 31. Red1 {[%clk 0:01:23]}  Nxf2 {[%clk 0:01:22]} 32. Kxf2 {[%clk 0:01:24]}  Rxb5 {[%clk 0:01:22]} 33. Rdb1 {[%clk 0:01:21]}  Rfb8 {[%clk 0:01:21]} 34. Rxb5 {[%clk 0:01:19]}  Rxb5 {[%clk 0:01:22]} 35. Ra2 {[%clk 0:01:20]}  Kg7 {[%clk 0:01:21]} 36. Ke1 {[%clk 0:01:19]}  Rb3 {[%clk 0:01:15]} 37. Kd2 {[%clk 0:01:20]}  Nxg3 {[%clk 0:01:15]} 38. Nc3 {[%clk 0:01:08]}  Ne4+ {[%clk 0:01:10]} 39. Nxe4 {[%clk 0:01:05]}  dxe4 {[%clk 0:01:11]} 40. Ke2 {[%clk 0:01:05]}  Rd3 {[%clk 0:01:00]} 41. Ra4 {[%clk 0:01:05]}  h4 {[%clk 0:00:57]} 42. Rxa5 {[%clk 0:00:56]}  Rxd4 {[%clk 0:00:55]} 43. Ke3 {[%clk 0:00:57]}  Rb4 {[%clk 0:00:53]} 44. Ra1 {[%clk 0:00:56]}  Kh6 {[%clk 0:00:52]} 45. Ra7 {[%clk 0:00:51]}  Rb2 {[%clk 0:00:36]} 46. Kxe4 {[%clk 0:00:49]}  Rxg2 {[%clk 0:00:36]} 47. Rxf7 {[%clk 0:00:49]}  h3 {[%clk 0:00:35]} 48. Rf8 {[%clk 0:00:47]}  Kg7 {[%clk 0:00:35]} 49. Rd8 {[%clk 0:00:41]}  h2 {[%clk 0:00:34]} 50. Rd7+ {[%clk 0:00:42]}  Kh6 {[%clk 0:00:30]} 51. Rd8 {[%clk 0:00:41]}  Kh5 {[%clk 0:00:15]} 52. Rh8+ {[%clk 0:00:41]}  Kg4 {[%clk 0:00:16]} 53. Rh6 {[%clk 0:00:42]}  Kg3 {[%clk 0:00:14]} 54. Rxg6+ {[%clk 0:00:41]}  Kf2 {[%clk 0:00:14]} 55. Rh6 {[%clk 0:00:41]}  Kg1 {[%clk 0:00:13]} 56. f5 {[%clk 0:00:42]}  Rg4+ {[%clk 0:00:12]} 57. Kf3 {[%clk 0:00:32]}  exf5 {[%clk 0:00:13]} 58. e6 {[%clk 0:00:32]}  h1=Q+ {[%clk 0:00:12]} 59. Rxh1+ {[%clk 0:00:31]}  Kxh1 {[%clk 0:00:13]} 0-1


[Site "https://www.chess.com"]